bitfinex/quotes_ETHUSD_20251127
["timestamp","ask_amount","ask_price","bid_price","bid_amount"]
[1764224176716,0.002,3032.3,3032.2,12.46993154]
[1764224177215,0.002,3032.3,3032.2,8.67393155]
[1764224178728,0.4939,3032.3,3032.2,6.23720129]
[1764224179216,0.8816,3032.3,3032.2,6.23720129]
[1764224179422,0.8816,3032.3,3032.2,5.87315858]
[1764224180489,0.8816,3032.3,3032.2,5.69848198]
[1764224180913,0.8816,3032.3,3032.2,3.29883549]
[1764224183137,0.8816,3032.3,3032.2,0.0009]
[1764224186550,0.002,3032.3,3032.2,2.87414649]
[1764224186838,0.4939,3032.3,3032.2,2.75157114]
[1764224187043,0.8816,3032.3,3032.2,2.75157114]
[1764224187222,0.8816,3032.3,3032.2,6.04950663]
[1764224187223,0.4939,3032.3,3032.2,6.04950663]
[1764224187422,0.002,3032.3,3032.2,6.04950663]
[1764224188727,0.002,3032.3,3032.2,6.52310663]
[1764224190717,0.002,3032.3,3032.2,6.04950663]
[1764224190918,0.409,3032.3,3032.2,6.04950663]
[1764224191444,0.002,3032.3,3032.2,6.52310663]
[1764224191826,0.4939,3032.3,3032.2,6.04950663]
[1764224192018,0.8816,3032.3,3032.2,5.69848198]
[1764224193653,0.4939,3032.3,3032.2,5.69848198]
[1764224193864,0.8816,3032.3,3032.2,5.69848198]
[1764224195165,0.002,3032.3,3032.2,5.69848198]
[1764224195349,0.002,3032.3,3032.2,6.17208198]
[1764224195665,0.002,3032.3,3032.2,7.16456536]
[1764224197136,0.409,3032.3,3032.2,4.29131887]
[1764224197347,0.409,3032.3,3032.2,3.29883549]
[1764224198359,0.002,3032.3,3032.2,3.29883549]
[1764224198528,0.002,3032.3,3032.2,4.22613549]
[1764224198728,0.002,3032.3,3032.2,3.77243549]
[1764224198948,0.4939,3032.3,3032.2,3.29883549]
[1764224199226,0.4939,3032.3,3032.2,4.19858887]
[1764224199429,0.4939,3032.3,3032.2,4.18758887]
[1764224199658,0.4939,3032.3,3032.2,3.28783549]
[1764224199856,0.8816,3032.3,3032.1,0.001]
[1764224200030,0.4592,3032.2,3032.1,2.40064649]
[1764224200938,0.4592,3032.2,3032.1,5.69869074]
[1764224201134,0.8793,3032.2,3032.1,3.29904425]
[1764224203054,0.8793,3032.2,3032.1,0.001]
[1764224205842,0.002,3032.3,3032.1,0.6494]
[1764224206164,0.002,3032.3,3032.2,3.32044649]
[1764224206338,0.002,3032.3,3032.2,2.85264649]
[1764224206659,0.4612,3032.3,3032.2,2.40054649]
[1764224207030,0.002,3032.3,3032.2,2.40054649]
[1764224207845,0.002,3032.3,3032.2,5.69848198]
[1764224208045,0.4608,3032.3,3032.2,3.29883549]
[1764224208247,0.8813,3032.3,3032.2,3.29883549]
[1764224209670,0.4608,3032.3,3032.2,3.29883549]
[1764224209968,0.4608,3032.3,3032.2,0.0009]
[1764224210467,0.8813,3032.3,3032.2,0.0009]
[1764224210637,1.18913166,3032.3,3032.2,0.0009]
[1764224210838,1.54820948,3032.3,3032.2,0.0009]
[1764224211058,1.75620948,3032.3,3032.2,0.0009]
[1764224212358,4.864792,3032.3,3032.2,0.0009]
[1764224212572,2.46514551,3032.3,3032.2,0.0009]
[1764224214255,1.75620948,3032.3,3032.2,0.0009]
[1764224214460,1.39713166,3032.3,3032.2,0.0009]
[1764224214772,1.39713166,3032.3,3032.1,0.001]
[1764224215073,1.39523166,3032.2,3032.1,0.001]
[1764224215275,0.30783166,3032.2,3032.1,2.40064649]
[1764224215441,0.002,3032.3,3032.1,0.4531]
[1764224215770,0.002,3032.3,3032.1,2.85274649]
[1764224216150,0.002,3032.3,3032.1,2.40064649]
[1764224216151,0.4103,3032.2,3032.1,2.40064649]
[1764224216353,0.4103,3032.2,3032.1,5.69869074]
[1764224216553,0.002,3032.3,3032.1,6.15079074]
[1764224217171,0.002,3032.3,3032.2,0.4521]
[1764224219076,0.002,3032.3,3032.2,3.75003549]
[1764224220761,0.002,3032.3,3032.2,3.29793549]
[1764224220762,0.8808,3032.3,3032.2,3.29793549]
[1764224221483,0.8808,3032.3,3032.1,0.001]
[1764224221683,0.4696,3032.2,3032.1,0.001]
[1764224221868,1.18761025,3032.2,3032.1,0.001]
[1764224222044,1.37758117,3032.2,3032.1,0.001]
[1764224226656,1.58558117,3032.2,3032.1,0.001]
[1764224229757,1.37758117,3032.2,3032.1,0.001]
[1764224229960,1.58558117,3032.2,3032.1,0.001]
[1764224230692,1.37758117,3032.2,3032.1,0.001]
[1764224230889,1.58558117,3032.2,3032.1,0.001]
[1764224232099,0.90798117,3032.2,3032.1,0.001]
[1764224232397,0.51621025,3032.2,3032.1,0.4533]
[1764224232602,0.92651025,3032.2,3032.1,0.001]
[1764224232884,0.30821025,3032.2,3032.1,0.4533]
[1764224233183,0.51621025,3032.2,3032.1,0.4533]
[1764224234177,0.51621025,3032.2,3032.1,3.75134425]
[1764224238785,0.91271025,3032.2,3032.1,3.29904425]
[1764224239278,0.51621025,3032.2,3032.1,3.29904425]
[1764224240389,0.91351025,3032.2,3032.1,0.001]
[1764224243084,1.39481025,3032.2,3032.1,0.001]
[1764224243994,8.1875835,3032.2,3032.1,0.001]
[1764224244158,8.91317761,3032.2,3032.1,0.001]
[1764224244358,9.04529524,3032.2,3032.1,0.001]
[1764224244583,9.92828781,3032.2,3032.1,0.001]
[1764224244797,9.79617018,3032.2,3032.1,0.001]
[1764224244995,8.1875835,3032.2,3032.1,0.001]
[1764224245309,8.91317761,3032.2,3032.1,0.001]
[1764224245476,10.0919503,3032.2,3032.1,0.001]
[1764224245671,7.52012959,3032.2,3032.1,0.001]
[1764224245991,1.13109811,3032.1,3032.0,0.001]
[1764224246197,5.32727661,3032.1,3032.0,0.001]
[1764224246502,5.53527661,3032.1,3032.0,0.001]
[1764224246701,8.83332086,3032.1,3032.0,0.001]
[1764224247307,7.6499888,3032.1,3032.0,0.001]
[1764224248076,7.2444848,3032.1,3032.0,0.001]
[1764224248306,8.1306878,3032.1,3032.0,0.001]
[1764224249081,8.5361918,3032.1,3032.0,0.001]
[1764224250207,8.53577119,3032.1,3032.0,0.001]
[1764224251590,8.32777119,3032.1,3032.0,0.001]
[1764224251798,8.53577119,3032.1,3032.0,0.001]
[1764224253801,8.53484675,3032.1,3032.0,0.001]
[1764224254414,8.66698314,3032.1,3032.0,0.001]
[1764224255318,8.45898314,3032.1,3032.0,0.001]
[1764224255519,8.66698314,3032.1,3032.0,0.001]
[1764224256224,7.78120075,3032.1,3032.0,0.001]
[1764224257418,7.37569675,3032.1,3032.0,0.001]
[1764224257722,7.78120075,3032.1,3032.0,0.001]
[1764224258028,4.2751565,3032.1,3032.0,0.001]
[1764224258327,6.27514117,3032.1,3032.0,0.001]
[1764224260031,9.75014117,3032.1,3032.0,0.001]
[1764224260203,6.27514117,3032.1,3032.0,0.001]
[1764224264232,7.16092356,3032.1,3032.0,0.001]
[1764224265252,6.95292356,3032.1,3032.0,0.001]
[1764224265417,7.16092356,3032.1,3032.0,0.001]
[1764224266718,9.84920434,3032.1,3032.0,0.001]
[1764224266931,11.61736338,3032.1,3032.0,0.001]
[1764224268234,11.40936338,3032.1,3032.0,0.001]
[1764224268446,11.61736338,3032.1,3032.0,0.001]
[1764224269018,9.84920434,3032.1,3032.0,0.001]
[1764224270444,9.84920434,3032.1,3031.8,0.001]
[1764224270445,4.70516128,3031.9,3031.8,0.001]
[1764224270645,8.88534441,3031.9,3031.8,0.001]
[1764224270848,9.33564441,3031.9,3031.8,0.001]
[1764224271056,11.08178597,3031.9,3031.8,0.001]
[1764224272460,3.475,3031.7,3031.4,0.001]
[1764224272665,6.1113237,3031.7,3031.4,0.001]
[1764224272955,6.25433789,3031.7,3031.4,0.001]
[1764224273159,6.92807281,3031.7,3031.4,0.001]
[1764224274526,10.22655221,3031.7,3031.4,0.001]
[1764224274734,8.78149595,3031.6,3031.4,0.001]
[1764224275142,8.91368256,3031.6,3031.4,0.001]
[1764224275770,8.60614521,3031.6,3031.4,0.001]
[1764224275925,10.52754303,3031.6,3031.4,0.001]
[1764224277255,13.82613123,3031.6,3031.4,0.001]
[1764224279034,6.76626242,3031.5,3031.4,0.001]
[1764224279235,10.06495943,3031.5,3031.4,0.001]
[1764224279473,10.06495943,3031.5,3031.2,0.001]
[1764224279474,4.60609811,3031.4,3031.2,0.001]
[1764224279770,4.70516128,3031.3,3031.2,0.001]
[1764224279933,4.70516128,3031.0,3029.8,0.1865]
[1764224280268,6.30876242,3031.0,3029.8,0.1865]
[1764224280471,2.57182071,3029.9,3029.5,0.6839]
[1764224280766,1.24101864,3029.8,3029.5,0.6839]
[1764224280958,0.30742453,3029.7,3029.5,0.6839]
[1764224281152,0.30742453,3029.6,3029.5,0.6839]
[1764224281467,0.3067383,3029.6,3029.5,0.1989]
[1764224281634,0.3067383,3029.6,3029.5,0.6883]
[1764224282472,0.3067383,3029.6,3029.5,1.1733]
[1764224283357,0.52249305,3029.6,3029.5,0.4894]
[1764224283556,1.55450333,3029.6,3029.5,0.4894]
[1764224283733,1.55450333,3029.6,3029.3,0.485]
[1764224283734,4.50122404,3029.6,3029.3,0.485]
[1764224283937,0.30641617,3029.5,3029.3,0.485]
[1764224284163,0.30641617,3029.5,3029.0,0.1973]
[1764224284164,0.30641617,3029.5,3029.4,0.485]
[1764224284330,0.51441617,3029.5,3029.4,0.9744]
[1764224284535,0.208,3029.5,3029.4,0.9744]
[1764224285475,0.30641617,3029.6,3029.4,4.2753678]
[1764224285656,5.05806091,3030.2,3029.5,1.73204459]
[1764224285657,1.43073861,3030.1,3029.5,1.73204459]
[1764224285838,1.43073861,3030.1,3029.6,0.485]
[1764224285839,0.51405412,3030.0,3029.6,0.485]
[1764224286036,0.208,3029.9,3029.6,0.485]
[1764224286243,0.93359411,3029.9,3029.6,0.485]
[1764224286456,0.30605412,3029.8,3029.6,0.485]
[1764224286839,0.30605412,3029.8,3029.7,0.4894]
[1764224287039,0.51405412,3029.8,3029.7,0.4894]
[1764224287235,0.51405412,3029.8,3029.7,0.9744]
[1764224288967,0.208,3029.8,3029.7,0.9744]
[1764224289172,0.51405412,3029.8,3029.7,0.9744]
[1764224290151,0.208,3029.8,3029.7,0.9744]
[1764224290344,0.51405412,3029.8,3029.7,0.9744]
[1764224290670,3.81460201,3029.8,3029.7,0.9744]
[1764224292278,4.6252614,3029.8,3029.7,0.9744]
[1764224292444,4.6252614,3029.8,3029.7,0.4894]
[1764224292844,4.6252614,3029.8,3029.7,0.9786]
[1764224295067,5.35085551,3029.8,3029.7,0.4894]
[1764224295258,5.35085551,3029.8,3029.7,0.9786]
[1764224296375,6.05655576,3029.8,3029.7,0.9786]
[1764224297381,1.94534848,3029.8,3029.7,0.9786]
[1764224298442,5.58579637,3029.8,3029.5,0.001]
[1764224298647,1.01220249,3029.7,3029.5,0.001]
[1764224298843,0.30605412,3029.6,3029.5,0.4902]
[1764224299378,0.30605412,3029.6,3029.5,0.98]
[1764224302183,1.01306404,3029.6,3029.5,0.98]
[1764224303680,1.01395516,3029.6,3029.5,0.98]
[1764224304773,0.30694524,3029.6,3029.5,0.98]
[1764224306073,4.5461429,3029.6,3029.5,0.001]
[1764224306261,8.38368561,3029.6,3029.5,0.001]
[1764224306456,6.97048082,3029.6,3029.5,0.001]
[1764224306969,6.97048082,3029.6,3029.5,0.4908]
[1764224307166,4.1890794,3029.6,3029.5,0.4908]
[1764224307494,1.94754927,3029.6,3029.5,0.98]
[1764224308187,2.83161362,3029.6,3029.5,0.98]
[1764224308684,6.13237939,3029.6,3029.5,0.98]
[1764224310283,5.92522851,3029.6,3029.5,0.98]
[1764224310485,6.13322851,3029.6,3029.5,0.98]
[1764224310988,5.92522851,3029.6,3029.5,0.98]
[1764224311185,6.13322851,3029.6,3029.5,0.98]
[1764224313490,7.08565193,3029.6,3029.5,0.98]
[1764224313690,3.99288616,3029.6,3029.5,0.98]
[1764224314094,3.78488616,3029.6,3029.5,0.98]
[1764224314295,3.99288616,3029.6,3029.5,0.98]
[1764224316202,7.29365193,3029.6,3029.5,0.98]
[1764224317301,7.65835193,3029.6,3029.5,0.001]
[1764224317678,7.29365193,3029.6,3029.5,0.4908]
[1764224318002,7.29365193,3029.6,3029.5,0.98]
[1764224318197,7.23378758,3029.6,3029.5,0.001]
[1764224318401,8.41254005,3029.6,3029.5,0.001]
[1764224318582,7.23378758,3029.6,3029.5,0.001]
[1764224319270,8.54764198,3029.6,3029.5,0.001]
[1764224319796,7.36601876,3029.6,3029.5,0.001]
[1764224320296,8.95297454,3029.6,3029.5,0.001]
[1764224320470,7.77152276,3029.6,3029.5,0.001]
[1764224321207,10.27552461,3029.6,3029.2,0.001]
[1764224321374,9.52363864,3029.3,3029.2,0.001]
[1764224321573,14.18167781,3029.3,3029.2,0.001]
[1764224321875,14.78647372,3029.3,3029.2,0.001]
[1764224322272,17.14442281,3029.3,3029.2,0.001]
[1764224322484,17.61493894,3029.3,3029.2,0.001]
[1764224322770,17.61493851,3029.3,3029.2,0.001]
[1764224323197,15.25698985,3029.3,3029.2,0.001]
[1764224323508,17.61493851,3029.3,3029.2,0.001]
[1764224324200,15.25698985,3029.3,3029.2,0.001]
[1764224324407,0.09906317,3029.0,3028.9,0.001]
[1764224324589,10.75084292,3029.0,3028.9,0.001]
[1764224324784,11.22334292,3029.0,3028.9,0.001]
[1764224324989,11.35564364,3029.0,3028.9,0.001]
[1764224325195,13.12045481,3029.0,3028.9,0.001]
[1764224325506,13.46968612,3029.0,3028.9,0.001]
[1764224325905,13.26068612,3029.0,3028.9,0.001]
[1764224326209,11.70487495,3029.0,3028.9,0.001]
[1764224326396,15.00629456,3029.0,3028.9,0.001]
[1764224326905,16.77110573,3029.0,3028.9,0.001]
[1764224327309,15.00629456,3029.0,3028.9,0.001]
[1764224331590,10.29695708,3029.0,3028.9,0.001]
[1764224331791,1.13109811,3028.9,3028.5,0.4800836]
[1764224332013,1.12709811,3028.7,3028.5,0.4800836]
[1764224332322,1.12709811,3028.7,3028.6,0.4877]
[1764224332621,2.13769441,3028.7,3028.1,0.1451]
[1764224332790,2.13769441,3028.7,3028.1,0.14198357]
[1764224332791,0.72559411,3028.4,3028.1,0.14198357]
[1764224332992,0.51086527,3028.3,3028.2,0.4877]
[1764224333227,0.51086527,3028.3,3028.1,0.13886714]
[1764224333484,0.51086527,3028.3,3028.2,0.4887]
[1764224333485,0.30586527,3028.3,3028.2,0.4887]
[1764224333685,0.51486527,3028.3,3028.2,0.4887]
[1764224333900,0.51486527,3028.3,3028.2,0.9699]
[1764224336325,4.54264212,3028.3,3028.2,0.9699]
[1764224336525,4.33364212,3028.3,3028.2,0.9699]
[1764224336727,4.54264212,3028.3,3028.2,0.9699]
[1764224337924,4.33364212,3028.3,3028.2,0.9699]
[1764224338131,4.54264212,3028.3,3028.2,0.9699]
[1764224338424,6.44969497,3028.3,3028.2,0.001]
[1764224338825,6.08069497,3028.3,3028.2,0.4887]
[1764224339043,7.05059497,3028.3,3028.2,0.4887]
[1764224342001,6.08069497,3028.3,3028.2,0.4887]
[1764224343603,2.56951223,3028.3,3028.2,0.9699]
[1764224343908,1.73628066,3028.3,3028.2,0.9699]
[1764224344109,1.94528066,3028.3,3028.2,0.9699]
[1764224344428,5.2474634,3028.3,3028.2,0.9699]
[1764224345424,1.94528066,3028.3,3028.2,0.9699]
[1764224345798,5.0384634,3028.3,3028.2,0.9699]
[1764224345996,1.73628066,3028.3,3028.2,0.9699]
[1764224346204,1.94528066,3028.3,3028.2,0.9699]
[1764224346402,1.73628066,3028.3,3028.2,0.9699]
[1764224346634,1.94528066,3028.3,3028.2,0.9699]
[1764224347034,1.73628066,3028.3,3028.2,0.9699]
[1764224347241,1.94528066,3028.3,3028.2,0.9699]
[1764224349715,5.2474634,3028.3,3028.2,0.4887]
[1764224349947,6.19050252,3028.3,3028.2,0.4887]
[1764224350242,7.07145361,3028.3,3028.2,0.4887]
[1764224350621,7.42415361,3028.3,3028.2,0.001]
[1764224351343,6.54320252,3028.3,3028.2,0.001]
[1764224352040,6.19050252,3028.3,3028.2,0.001]
[1764224352411,6.19050252,3028.3,3028.2,0.485]
[1764224352714,1.94528066,3028.3,3028.2,0.9357]
[1764224354123,5.2474634,3028.3,3028.2,0.9357]
[1764224354956,1.94528066,3028.3,3028.2,0.9357]
[1764224356220,1.94972737,3028.3,3028.2,0.9357]
[1764224356421,5.25191011,3028.3,3028.2,0.9357]
[1764224357273,5.04291011,3028.3,3028.2,0.9357]
[1764224357423,5.25191011,3028.3,3028.2,0.9357]
[1764224358552,1.94972737,3028.3,3028.2,0.9357]
[1764224359423,1.74072737,3028.3,3028.2,0.9357]
[1764224359851,1.94972737,3028.3,3028.2,0.9357]
[1764224360218,1.95171691,3028.3,3028.2,0.9357]
[1764224361461,5.25389965,3028.3,3028.2,0.9357]
[1764224362456,2.83837197,3028.3,3028.2,0.9357]
[1764224362755,1.2261228,3028.3,3028.2,0.9357]
[1764224367040,1.2281228,3028.3,3028.2,0.9357]
[1764224371460,1.2281228,3028.3,3028.2,0.485]
[1764224372252,1.2281228,3028.3,3028.2,0.9357]
[1764224373060,1.2281228,3028.3,3028.2,0.485]
[1764224373230,1.22785784,3028.3,3028.2,0.485]
[1764224375554,1.61875784,3028.3,3028.2,0.001]
[1764224383165,1.22785784,3028.3,3028.2,0.001]
[1764224383361,1.22785784,3028.3,3028.2,0.4837]
[1764224383872,1.22785784,3028.3,3028.2,0.9387]
[1764224384164,1.22785784,3028.3,3028.2,0.4837]
[1764224384371,1.22785784,3028.3,3028.2,0.9387]
[1764224384874,1.01885784,3028.3,3028.2,0.9387]
[1764224385047,1.22785784,3028.3,3028.2,0.9387]
[1764224385945,1.22785784,3028.3,3028.2,0.4837]
[1764224386142,1.01885784,3028.3,3028.2,0.4837]
[1764224386343,1.22785784,3028.3,3028.2,0.9387]
[1764224387570,1.01885784,3028.3,3028.2,0.9387]
[1764224387762,1.22785784,3028.3,3028.2,0.9387]
[1764224388084,1.59565784,3028.3,3028.2,0.001]
[1764224388267,6.98858975,3028.3,3028.2,0.001]
[1764224388572,7.28338787,3028.3,3028.2,0.001]
[1764224388751,7.28338762,3028.3,3028.2,0.001]
[1764224391975,3.13490488,3028.3,3028.2,0.001]
[1764224392182,3.13490488,3028.3,3028.2,0.4837]
[1764224392183,6.43708762,3028.3,3028.2,0.4837]
[1764224392481,7.600704,3028.3,3028.2,0.4837]
[1764224392650,6.41925107,3028.3,3028.2,0.4837]
[1764224392852,6.41925107,3028.3,3028.2,0.001]
[1764224393253,6.78705107,3028.3,3028.2,0.001]
[1764224393581,7.6728523,3028.3,3028.2,0.001]
[1764224393761,6.57805107,3028.3,3028.2,0.001]
[1764224393951,7.67285268,3028.3,3028.2,0.001]
[1764224394148,7.46385268,3028.3,3028.2,0.001]
[1764224394363,4.00286994,3028.3,3028.2,0.4837]
[1764224394561,2.83925356,3028.3,3028.2,0.9387]
[1764224395166,1.24418396,3028.3,3028.2,0.9387]
[1764224395383,2.83861615,3028.3,3028.2,0.9387]
[1764224395589,2.62961615,3028.3,3028.2,0.4837]
[1764224395755,1.95282049,3028.3,3028.2,0.4837]
[1764224396483,5.25500323,3028.3,3028.2,0.4837]
[1764224397275,6.19928034,3028.3,3028.2,0.4837]
[1764224398784,7.085076,3028.3,3028.2,0.4837]
[1764224399760,2.8970976,3028.3,3028.2,0.4837]
[1764224400685,7.085076,3028.3,3028.2,0.4837]
[1764224402173,3.78289326,3028.3,3028.2,0.4837]
[1764224402490,2.83861615,3028.3,3028.2,0.4837]
[1764224404795,1.22722638,3028.3,3028.2,0.4837]
[1764224405780,1.22722638,3028.3,3028.2,0.9387]
[1764224406102,1.01822638,3028.3,3028.2,4.24099179]
[1764224406270,0.30958985,3028.3,3028.2,5.26683762]
[1764224407399,0.002,3028.3,3028.2,5.26683762]
[1764224417099,0.002,3028.3,3028.2,5.27833762]
[1764224417411,0.002,3028.3,3028.2,4.25249179]
[1764224418198,0.002,3028.3,3028.2,3.78599179]
[1764224418804,0.002,3028.3,3028.2,4.25249179]
[1764224420420,0.5832,3028.3,3028.2,0.001]
[1764224420909,0.89024384,3028.3,3028.2,0.001]
[1764224421079,0.002,3028.3,3028.2,4.22619179]
[1764224422321,0.002,3028.3,3028.2,0.4574]
[1764224423911,0.3752,3028.3,3028.2,0.001]
[1764224424213,0.30922524,3028.3,3028.2,0.4574]
[1764224425217,0.30922524,3028.3,3028.2,3.75969179]
[1764224425810,0.30922524,3028.3,3028.2,0.4574]
[1764224427291,0.30922524,3028.3,3028.2,3.75969179]
[1764224427497,0.30922524,3028.3,3028.2,0.4574]
[1764224428011,0.30922524,3028.3,3028.2,3.75969179]
[1764224428407,0.30922524,3028.3,3028.2,0.4574]
[1764224434417,1.14862524,3028.3,3028.2,0.001]
[1764224435518,0.68242524,3028.3,3028.2,0.001]
[1764224435724,0.30922524,3028.3,3028.2,0.001]
[1764224436627,0.30922524,3028.3,3028.2,0.4574]
[1764224437625,0.68332524,3028.3,3028.2,0.001]
[1764224442134,0.30922524,3028.3,3028.2,0.4583]
[1764224442830,0.30922524,3028.3,3028.2,4.25789179]
[1764224444844,1.01909104,3028.3,3028.2,4.25789179]
[1764224446429,1.40729104,3028.3,3028.2,0.001]
[1764224446616,1.85859104,3028.3,3028.2,0.001]
[1764224446938,1.40729104,3028.3,3028.2,0.001]
[1764224448051,1.01909104,3028.3,3028.2,0.9556]
[1764224448210,1.22709104,3028.3,3028.2,0.9556]
[1764224448836,1.01909104,3028.3,3028.2,4.25789179]
[1764224449028,1.22709104,3028.3,3028.2,4.25789179]
[1764224450106,1.61529104,3028.3,3028.2,0.001]
[1764224451239,1.22709104,3028.3,3028.2,0.4583]
[1764224451740,1.22709104,3028.3,3028.2,0.9556]
[1764224452133,1.22709104,3028.3,3028.2,0.4583]
[1764224452334,1.61599104,3028.3,3028.2,0.001]
[1764224452534,2.06669104,3028.3,3028.2,0.001]
[1764224452736,1.61599104,3028.3,3028.2,0.001]
[1764224454047,1.22709104,3028.3,3028.2,0.4583]
[1764224455158,1.22709104,3028.3,3028.2,0.001]
[1764224455441,2.06669104,3028.3,3028.2,0.001]
[1764224455623,2.36193971,3028.3,3028.2,0.001]
[1764224460929,2.36350335,3028.3,3028.2,0.001]
[1764224462921,5.66568609,3028.3,3028.2,0.001]
[1764224464324,5.66538416,3028.3,3028.2,0.001]
[1764224465253,2.36320142,3028.3,3028.2,0.001]
[1764224468164,1.02035275,3028.3,3028.2,0.9556]
[1764224468340,1.22835275,3028.3,3028.2,0.9556]
[1764224468752,1.02035275,3028.3,3028.2,0.9556]
[1764224468955,0.51848695,3028.3,3028.2,0.9556]
[1764224469460,1.22835275,3028.3,3028.2,0.9556]
[1764224469859,0.51848695,3028.3,3028.2,0.9556]
[1764224470236,1.22835275,3028.3,3028.2,0.9556]
[1764224470638,1.58105275,3028.3,3028.2,0.001]
[1764224470858,2.46633328,3028.3,3028.2,0.001]
[1764224471846,1.02035275,3028.3,3028.2,0.9727]
[1764224472050,1.22835275,3028.3,3028.2,0.9727]
[1764224472246,1.02035275,3028.3,3028.2,4.27499179]
[1764224472450,1.22835275,3028.3,3028.2,0.9727]
[1764224473168,1.22835275,3028.3,3028.2,4.27499179]
[1764224473469,1.22835275,3028.3,3028.2,0.4813]
[1764224473969,1.22835275,3028.3,3028.2,0.9727]
[1764224475068,1.22835275,3028.3,3028.2,4.27499179]
[1764224475274,1.22835275,3028.3,3028.2,0.9727]
[1764224478174,1.02035275,3028.3,3028.2,0.4813]
[1764224478473,1.22835275,3028.3,3028.2,0.9727]
[1764224480175,1.02035275,3028.3,3028.2,3.78359179]
[1764224480349,1.22835275,3028.3,3028.2,4.99906105]
[1764224481170,0.51848695,3028.3,3028.2,4.99906105]
[1764224481777,1.22835275,3028.3,3028.2,4.99906105]
[1764224482269,0.51848695,3028.3,3028.2,4.99906105]
[1764224482681,0.31048695,3028.3,3028.2,4.99906105]
[1764224482976,1.02035275,3028.3,3028.2,4.99906105]
[1764224483550,0.31048695,3028.3,3028.2,4.99906105]
[1764224487668,0.31048695,3028.3,3028.2,7.40581362]
[1764224487848,0.002,3028.3,3028.2,7.40581362]
[1764224489561,0.002,3028.3,3028.2,7.61381362]
[1764224490679,0.002,3028.3,3028.2,7.78476975]
[1764224490854,0.002,3028.3,3028.2,5.20706105]
[1764224496787,0.002,3028.3,3028.2,4.71566105]
[1764224496991,0.002,3028.3,3028.2,3.99159179]
[1764224497176,0.002,3028.3,3028.2,4.48299179]
[1764224500089,0.002,3028.3,3028.2,7.06070049]
[1764224501378,0.002,3028.3,3028.2,3.99159179]
[1764224501699,0.002,3028.3,3028.2,4.44819179]
[1764224503993,0.002,3028.3,3028.2,5.56896219]
[1764224505712,0.002,3028.3,3028.2,3.78359179]
[1764224506075,0.002,3028.3,3028.2,4.24019179]
[1764224516607,0.002,3028.3,3028.2,4.90559179]
[1764224517304,0.31058368,3028.3,3028.2,4.90559179]
[1764224519002,0.31058368,3028.3,3028.2,4.9044494]
[1764224520913,0.31058368,3028.3,3028.2,6.32861649]
[1764224521812,1.15018368,3028.3,3028.2,5.39185888]
[1764224522119,1.15018368,3028.3,3028.2,3.96769179]
[1764224522793,0.31058368,3028.3,3028.2,4.44369179]
[1764224522998,0.31058368,3028.3,3028.2,4.90029179]
[1764224523222,0.76608368,3028.3,3028.2,3.96769179]
[1764224523700,0.31058368,3028.3,3028.2,4.44369179]
[1764224523899,0.31058368,3028.3,3028.2,5.85217312]
[1764224525924,0.69548368,3028.3,3028.2,5.37617312]
[1764224526121,0.31058368,3028.3,3028.2,4.90029179]
[1764224532029,0.31092798,3028.3,3028.2,4.90029179]
[1764224532219,0.002,3028.3,3028.2,4.90029179]
[1764224536833,0.002,3028.3,3028.2,4.44369179]
[1764224537133,0.002,3028.3,3028.2,4.93219179]
[1764224537838,0.002,3028.3,3028.2,4.44369179]
[1764224538132,0.3612,3028.3,3028.2,3.96769179]
[1764224538931,0.002,3028.3,3028.2,4.44109179]
[1764224539233,0.002,3028.3,3028.2,5.60819225]
[1764224542628,0.3612,3028.3,3028.2,3.96769179]
[1764224542808,1.15023951,3028.3,3028.2,0.6654]
[1764224543014,1.35823951,3028.3,3028.1,0.001]
[1764224543313,0.79503951,3028.2,3028.1,0.001]
[1764224543530,0.99474243,3028.2,3028.1,0.001]
[1764224544911,0.51334243,3028.2,3028.1,0.001]
[1764224545245,0.31363951,3028.2,3028.1,0.001]
[1764224545740,0.79503951,3028.2,3028.1,0.001]
[1764224547116,0.30883951,3028.2,3028.1,0.001]
[1764224547326,0.66803951,3028.2,3028.1,0.001]
[1764224547516,1.14823951,3028.2,3028.1,0.001]
[1764224548151,1.35623951,3028.2,3028.1,0.001]
[1764224552502,1.00903951,3028.2,3028.1,0.001]
[1764224553559,1.35753951,3028.2,3028.1,0.001]
[1764224553768,1.00903951,3028.2,3028.1,0.001]
[1764224554973,0.80103951,3028.2,3028.1,0.001]
[1764224555169,1.00903951,3028.2,3028.1,0.001]
[1764224556066,0.80103951,3028.2,3028.1,0.001]
[1764224556270,1.00903951,3028.2,3028.1,0.001]
[1764224556773,0.51683951,3028.2,3028.1,0.4744]
[1764224557165,0.51683951,3028.2,3028.1,0.001]
[1764224559574,0.30883951,3028.2,3028.1,0.4744]
[1764224559775,0.30883951,3028.2,3028.1,4.21258048]
[1764224560071,0.30883951,3028.2,3028.1,7.51498132]
[1764224560373,0.30883951,3028.2,3028.1,6.89188132]
[1764224560676,0.21,3028.3,3028.1,6.89188132]
[1764224560969,0.21,3028.3,3028.1,6.18381753]
[1764224561584,0.002,3028.3,3028.2,0.4654]
[1764224561745,0.31086157,3028.3,3028.2,3.32961669]
[1764224561944,0.002,3028.3,3028.2,4.0552108]
[1764224562175,0.002,3028.3,3028.2,9.74087342]
[1764224563772,0.002,3028.3,3028.2,10.14637742]
[1764224565186,0.002,3028.3,3028.2,13.94237741]
[1764224567584,0.002,3028.3,3028.2,10.14637742]
[1764224573084,0.002,3028.3,3028.2,13.94237741]
[1764224573588,0.002,3028.3,3028.2,13.94327741]
[1764224575987,0.002,3029.0,3028.9,5.94513149]
[1764224576179,0.002,3029.0,3028.9,6.61853149]
[1764224576377,0.002,3029.0,3028.9,7.07573149]
[1764224576582,0.002,3029.0,3028.9,7.57803149]
[1764224577888,0.002,3029.0,3028.9,10.87956009]